[Event "Titled Tuesday Blitz June 21 Late 2022"]
[White "Arnold, Ken"]
[Black "Souleidis, Georgios"]
[WhiteFideId "2056836"]
[BlackFideId "4206827"]
[WhiteElo "2321"]
[BlackElo "2401"]
[Result "1-0"]
[Round "06"]
[TimeControl "180+1"]
[Date "2022.06.22"]
[WhiteClock "0:00:40"]
[BlackClock "0:00:07"]

1. d4 {[%clk 0:03:00]}  Nf6 {[%clk 0:02:59]} 2. c4 {[%clk 0:03:01]}  g6 {[%clk 0:03:00]} 3. Nf3 {[%clk 0:03:01]}  Bg7 {[%clk 0:03:00]} 4. Nc3 {[%clk 0:03:01]}  O-O {[%clk 0:03:00]} 5. Bf4 {[%clk 0:03:02]}  c5 {[%clk 0:02:56]} 6. e3 {[%clk 0:03:01]}  cxd4 {[%clk 0:02:56]} 7. exd4 {[%clk 0:03:02]}  d5 {[%clk 0:02:56]} 8. c5 {[%clk 0:02:59]}  Nc6 {[%clk 0:02:42]} 9. a3 {[%clk 0:02:57]}  Bg4 {[%clk 0:02:35]} 10. Be2 {[%clk 0:02:56]}  Ne4 {[%clk 0:02:28]} 11. Be3 {[%clk 0:02:53]}  Nxc3 {[%clk 0:02:18]} 12. bxc3 {[%clk 0:02:52]}  Qa5 {[%clk 0:02:18]} 13. Qd2 {[%clk 0:02:44]}  Rad8 {[%clk 0:02:02]} 14. O-O {[%clk 0:02:42]}  Bxf3 {[%clk 0:02:01]} 15. Bxf3 {[%clk 0:02:41]}  e5 {[%clk 0:02:02]} 16. Rfd1 {[%clk 0:02:36]}  e4 {[%clk 0:01:28]} 17. Be2 {[%clk 0:02:32]}  f5 {[%clk 0:01:17]} 18. Rdb1 {[%clk 0:02:24]}  Qc7 {[%clk 0:01:12]} 19. Bf4 {[%clk 0:02:21]}  Qf7 {[%clk 0:01:12]} 20. Bd6 {[%clk 0:02:18]}  f4 {[%clk 0:01:03]} 21. Bxf8 {[%clk 0:02:11]}  Rxf8 {[%clk 0:01:04]} 22. f3 {[%clk 0:02:08]}  g5 {[%clk 0:00:59]} 23. Rb5 {[%clk 0:01:55]}  g4 {[%clk 0:00:57]} 24. Rab1 {[%clk 0:01:53]}  gxf3 {[%clk 0:00:51]} 25. gxf3 {[%clk 0:01:52]}  Nd8 {[%clk 0:00:47]} 26. Kh1 {[%clk 0:01:48]}  Kh8 {[%clk 0:00:42]} 27. Rg1 {[%clk 0:01:44]}  Re8 {[%clk 0:00:36]} 28. Qa2 {[%clk 0:01:28]}  a6 {[%clk 0:00:33]} 29. Rb6 {[%clk 0:01:26]}  Nc6 {[%clk 0:00:29]} 30. fxe4 {[%clk 0:01:24]}  Rxe4 {[%clk 0:00:27]} 31. Bf3 {[%clk 0:01:20]}  Qe7 {[%clk 0:00:21]} 32. Qxd5 {[%clk 0:01:14]}  Re1 {[%clk 0:00:20]} 33. Rb1 {[%clk 0:00:54]}  Rxb1 {[%clk 0:00:19]} 34. Rxb1 {[%clk 0:00:53]}  Bf6 {[%clk 0:00:19]} 35. Rg1 {[%clk 0:00:52]}  Bg7 {[%clk 0:00:17]} 36. Qg5 {[%clk 0:00:50]}  Qd7 {[%clk 0:00:12]} 37. Qxf4 {[%clk 0:00:47]}  a5 {[%clk 0:00:11]} 38. Qd6 {[%clk 0:00:44]}  Qf7 {[%clk 0:00:10]} 39. Bd5 {[%clk 0:00:43]}  Qe8 {[%clk 0:00:09]} 40. Qe6 {[%clk 0:00:42]}  Qf8 {[%clk 0:00:08]} 41. Qf7 {[%clk 0:00:41]}  Qxf7 {[%clk 0:00:06]} 42. Bxf7 {[%clk 0:00:41]}  a4 {[%clk 0:00:06]} 43. Bd5 {[%clk 0:00:41]}  Na5 {[%clk 0:00:07]} 44. Rb1 {[%clk 0:00:40]} 1-0


[Site "https://www.chess.com"]

[Event "Titled Tuesday Blitz June 21 Late 2022"]
[White "Artemenko, Oleg"]
[Black "Roman, Rodrigo"]
[WhiteFideId "14201798"]
[BlackFideId "3701220"]
[WhiteElo "2287"]
[BlackElo "2001"]
[Result "1-0"]
[Round "06"]
[TimeControl "180+1"]
[Date "2022.06.22"]
[WhiteClock "0:00:56"]
[BlackClock "0:00:11"]

1. e4 {[%clk 0:03:00]}  e6 {[%clk 0:03:00]} 2. d4 {[%clk 0:03:00]}  d5 {[%clk 0:03:01]} 3. e5 {[%clk 0:03:00]}  c5 {[%clk 0:03:01]} 4. c3 {[%clk 0:03:00]}  Nc6 {[%clk 0:03:02]} 5. Nf3 {[%clk 0:03:01]}  Nge7 {[%clk 0:03:01]} 6. a3 {[%clk 0:02:58]}  a5 {[%clk 0:03:01]} 7. Bd3 {[%clk 0:02:57]}  h6 {[%clk 0:02:57]} 8. O-O {[%clk 0:02:57]}  c4 {[%clk 0:02:56]} 9. Bc2 {[%clk 0:02:57]}  b5 {[%clk 0:02:57]} 10. Nbd2 {[%clk 0:02:57]}  Rb8 {[%clk 0:02:57]} 11. Re1 {[%clk 0:02:56]}  g5 {[%clk 0:02:57]} 12. Nf1 {[%clk 0:02:56]}  Ng6 {[%clk 0:02:56]} 13. Ng3 {[%clk 0:02:56]}  Bg7 {[%clk 0:02:55]} 14. Nh5 {[%clk 0:02:55]}  O-O {[%clk 0:02:55]} 15. Nxg5 {[%clk 0:02:19]}  hxg5 {[%clk 0:02:45]} 16. Qg4 {[%clk 0:02:18]}  Bh6 {[%clk 0:02:43]} 17. Nf6+ {[%clk 0:02:16]}  Kg7 {[%clk 0:02:41]} 18. h4 {[%clk 0:02:16]}  Nxh4 {[%clk 0:02:23]} 19. f4 {[%clk 0:02:15]}  Ne7 {[%clk 0:01:14]} 20. fxg5 {[%clk 0:02:10]}  Nhf5 {[%clk 0:01:10]} 21. gxh6+ {[%clk 0:01:54]}  Kh8 {[%clk 0:01:10]} 22. Bg5 {[%clk 0:01:44]}  Rg8 {[%clk 0:00:48]} 23. Nxg8 {[%clk 0:01:37]}  Qxg8 {[%clk 0:00:47]} 24. h7 {[%clk 0:01:11]}  Qg6 {[%clk 0:00:37]} 25. Bf6+ {[%clk 0:01:07]}  Kxh7 {[%clk 0:00:35]} 26. Qh3+ {[%clk 0:01:07]}  Qh6 {[%clk 0:00:26]} 27. Bxe7 {[%clk 0:01:05]}  Bd7 {[%clk 0:00:24]} 28. Qxh6+ {[%clk 0:01:00]}  Kxh6 {[%clk 0:00:24]} 29. Bf6 {[%clk 0:01:00]}  Rg8 {[%clk 0:00:23]} 30. Kf2 {[%clk 0:01:00]}  Rg4 {[%clk 0:00:22]} 31. Rh1+ {[%clk 0:01:00]}  Kg6 {[%clk 0:00:22]} 32. g3 {[%clk 0:01:00]}  b4 {[%clk 0:00:20]} 33. axb4 {[%clk 0:00:59]}  axb4 {[%clk 0:00:21]} 34. Ra8 {[%clk 0:00:59]}  Rh4 {[%clk 0:00:15]} 35. Rxh4 {[%clk 0:00:57]}  Bc8 {[%clk 0:00:11]} 36. Rxc8 {[%clk 0:00:56]}  b3 {[%clk 0:00:11]} 37. Rg8# {[%clk 0:00:56]} 1-0


[Site "https://www.chess.com"]

[Event "Titled Tuesday Blitz June 21 Late 2022"]
[White "Avazkhonov, Alikhon"]
[Black "Kovacevic, Radmila"]
[WhiteFideId "14208504"]
[BlackFideId "933171"]
[WhiteElo "1739"]
[BlackElo "2115"]
[Result "1-0"]
[Round "06"]
[TimeControl "180+1"]
[Date "2022.06.22"]
[WhiteClock "0:01:53"]
[BlackClock "0:01:37"]

1. d4 {[%clk 0:03:00]}  e5 {[%clk 0:03:00]} 2. dxe5 {[%clk 0:03:00]}  Nc6 {[%clk 0:02:57]} 3. Nf3 {[%clk 0:02:59]}  Qe7 {[%clk 0:02:57]} 4. Nc3 {[%clk 0:02:50]}  Nxe5 {[%clk 0:02:56]} 5. Nxe5 {[%clk 0:02:49]}  Qxe5 {[%clk 0:02:57]} 6. e4 {[%clk 0:02:32]}  Nf6 {[%clk 0:02:55]} 7. f4 {[%clk 0:02:31]}  Qe6 {[%clk 0:02:45]} 8. Qd4 {[%clk 0:02:18]}  c5 {[%clk 0:02:09]} 9. Qc4 {[%clk 0:02:15]}  a6 {[%clk 0:02:01]} 10. Be3 {[%clk 0:02:11]}  b5 {[%clk 0:01:50]} 11. Qxe6+ {[%clk 0:02:10]}  fxe6 {[%clk 0:01:50]} 12. O-O-O {[%clk 0:02:09]}  b4 {[%clk 0:01:47]} 13. Na4 {[%clk 0:01:57]}  Nxe4 {[%clk 0:01:45]} 14. Nb6 {[%clk 0:01:56]}  Rb8 {[%clk 0:01:42]} 15. Nxc8 {[%clk 0:01:54]}  Rxc8 {[%clk 0:01:43]} 16. Bxa6 {[%clk 0:01:54]}  d5 {[%clk 0:01:38]} 17. Bxc8 {[%clk 0:01:53]}  Kf7 {[%clk 0:01:37]} 18. f5 {[%clk 0:01:53]} 1-0


[Site "https://www.chess.com"]

[Event "Titled Tuesday Blitz June 21 Late 2022"]
[White "Bachmann, Axel"]
[Black "Jiganchine, Roman"]
[WhiteFideId "3700488"]
[BlackFideId "2603667"]
[WhiteElo "2587"]
[BlackElo "2227"]
[Result "1/2-1/2"]
[Round "06"]
[TimeControl "180+1"]
[Date "2022.06.22"]
[WhiteClock "0:00:15"]
[BlackClock "0:01:03"]

1. e4 {[%clk 0:03:00]}  c6 {[%clk 0:02:59]} 2. d4 {[%clk 0:03:00]}  d5 {[%clk 0:02:59]} 3. Nd2 {[%clk 0:02:58]}  dxe4 {[%clk 0:02:58]} 4. Nxe4 {[%clk 0:02:59]}  Nf6 {[%clk 0:02:58]} 5. Nxf6+ {[%clk 0:02:59]}  exf6 {[%clk 0:02:59]} 6. c3 {[%clk 0:02:59]}  Bd6 {[%clk 0:02:57]} 7. Bc4 {[%clk 0:02:58]}  O-O {[%clk 0:02:49]} 8. Ne2 {[%clk 0:02:40]}  Na6 {[%clk 0:02:42]} 9. O-O {[%clk 0:02:36]}  Nc7 {[%clk 0:02:41]} 10. Bf4 {[%clk 0:02:31]}  Re8 {[%clk 0:02:38]} 11. Bxd6 {[%clk 0:02:30]}  Qxd6 {[%clk 0:02:39]} 12. Qd2 {[%clk 0:02:29]}  Be6 {[%clk 0:02:21]} 13. Bxe6 {[%clk 0:02:11]}  fxe6 {[%clk 0:02:20]} 14. Rad1 {[%clk 0:02:08]}  Rad8 {[%clk 0:02:18]} 15. Qf4 {[%clk 0:02:04]}  e5 {[%clk 0:02:09]} 16. Qg3 {[%clk 0:01:52]}  exd4 {[%clk 0:02:03]} 17. Qxd6 {[%clk 0:01:49]}  Rxd6 {[%clk 0:02:03]} 18. Rxd4 {[%clk 0:01:41]}  Rd5 {[%clk 0:01:47]} 19. Rxd5 {[%clk 0:01:30]}  Nxd5 {[%clk 0:01:47]} 20. Nd4 {[%clk 0:01:30]}  c5 {[%clk 0:01:44]} 21. Nb3 {[%clk 0:01:12]}  b6 {[%clk 0:01:41]} 22. g3 {[%clk 0:00:59]}  Re2 {[%clk 0:01:40]} 23. Rd1 {[%clk 0:00:59]}  Ne7 {[%clk 0:01:35]} 24. Rd2 {[%clk 0:00:59]}  Rxd2 {[%clk 0:01:29]} 25. Nxd2 {[%clk 0:00:56]}  Kf7 {[%clk 0:01:29]} 26. Kf1 {[%clk 0:00:53]}  Ke6 {[%clk 0:01:29]} 27. Ke2 {[%clk 0:00:48]}  Kd5 {[%clk 0:01:29]} 28. Kd3 {[%clk 0:00:46]}  Nc6 {[%clk 0:01:27]} 29. f4 {[%clk 0:00:41]}  h5 {[%clk 0:01:18]} 30. Nf3 {[%clk 0:00:30]}  a5 {[%clk 0:01:15]} 31. c4+ {[%clk 0:00:29]}  Ke6 {[%clk 0:01:10]} 32. a3 {[%clk 0:00:26]}  f5 {[%clk 0:01:05]} 33. b3 {[%clk 0:00:14]}  g6 {[%clk 0:01:04]} 34. h4 {[%clk 0:00:13]}  Kf6 {[%clk 0:01:03]} 35. Ke3 {[%clk 0:00:13]}  Ke6 {[%clk 0:01:03]} 36. Kd3 {[%clk 0:00:13]}  Kf6 {[%clk 0:01:03]} 37. Ke3 {[%clk 0:00:14]}  Ke6 {[%clk 0:01:03]} 38. Kd3 {[%clk 0:00:15]} 1/2-1/2


[Site "https://www.chess.com"]

[Event "Titled Tuesday Blitz June 21 Late 2022"]
[White "Bluebaum, Matthias"]
[Black "Christiansen, Johan-Sebastian"]
[WhiteFideId "24651516"]
[BlackFideId "1512668"]
[WhiteElo "2556"]
[BlackElo "2513"]
[Result "1/2-1/2"]
[Round "06"]
[TimeControl "180+1"]
[Date "2022.06.21"]
[WhiteClock "0:00:16"]
[BlackClock "0:00:07"]

1. d4 {[%clk 0:03:00]}  d5 {[%clk 0:03:00]} 2. c4 {[%clk 0:02:58]}  dxc4 {[%clk 0:03:01]} 3. e4 {[%clk 0:02:58]}  e5 {[%clk 0:02:59]} 4. Nf3 {[%clk 0:02:55]}  exd4 {[%clk 0:02:59]} 5. Bxc4 {[%clk 0:02:55]}  Nc6 {[%clk 0:03:00]} 6. O-O {[%clk 0:02:54]}  Be6 {[%clk 0:03:00]} 7. Bb5 {[%clk 0:02:54]}  Bc5 {[%clk 0:02:11]} 8. b4 {[%clk 0:02:54]}  Bb6 {[%clk 0:02:11]} 9. a4 {[%clk 0:02:55]}  a6 {[%clk 0:02:11]} 10. Bxc6+ {[%clk 0:02:56]}  bxc6 {[%clk 0:02:12]} 11. a5 {[%clk 0:02:57]}  Ba7 {[%clk 0:02:12]} 12. Bb2 {[%clk 0:02:57]}  Nf6 {[%clk 0:02:01]} 13. Bxd4 {[%clk 0:02:57]}  Bxd4 {[%clk 0:01:58]} 14. Nxd4 {[%clk 0:02:58]}  Qd6 {[%clk 0:01:58]} 15. Nxe6 {[%clk 0:02:35]}  Qxe6 {[%clk 0:01:56]} 16. Nc3 {[%clk 0:02:31]}  O-O {[%clk 0:01:53]} 17. Qe2 {[%clk 0:02:32]}  Qe5 {[%clk 0:01:41]} 18. Rac1 {[%clk 0:02:09]}  Rfd8 {[%clk 0:01:37]} 19. Kh1 {[%clk 0:02:02]}  Qd4 {[%clk 0:01:27]} 20. e5 {[%clk 0:01:23]}  Re8 {[%clk 0:00:59]} 21. f4 {[%clk 0:01:14]}  Qxb4 {[%clk 0:00:56]} 22. Qf3 {[%clk 0:01:14]}  Nd5 {[%clk 0:00:52]} 23. Nxd5 {[%clk 0:01:15]}  cxd5 {[%clk 0:00:53]} 24. Qxd5 {[%clk 0:01:16]}  Rad8 {[%clk 0:00:47]} 25. Qc5 {[%clk 0:01:15]}  Qa4 {[%clk 0:00:47]} 26. Qxc7 {[%clk 0:01:13]}  Rd5 {[%clk 0:00:44]} 27. h3 {[%clk 0:00:58]}  Qxa5 {[%clk 0:00:39]} 28. Qc6 {[%clk 0:00:57]}  Qb5 {[%clk 0:00:38]} 29. Qc2 {[%clk 0:00:38]}  Red8 {[%clk 0:00:35]} 30. Rb1 {[%clk 0:00:38]}  Qd7 {[%clk 0:00:30]} 31. Qe4 {[%clk 0:00:32]}  Rd4 {[%clk 0:00:30]} 32. Qb7 {[%clk 0:00:30]}  a5 {[%clk 0:00:25]} 33. Qxd7 {[%clk 0:00:29]}  R4xd7 {[%clk 0:00:26]} 34. Ra1 {[%clk 0:00:27]}  Ra8 {[%clk 0:00:23]} 35. Ra4 {[%clk 0:00:26]}  g6 {[%clk 0:00:23]} 36. Rc1 {[%clk 0:00:26]}  Rd5 {[%clk 0:00:22]} 37. Rc6 {[%clk 0:00:24]}  Rb5 {[%clk 0:00:22]} 38. Kh2 {[%clk 0:00:23]}  Kg7 {[%clk 0:00:20]} 39. h4 {[%clk 0:00:23]}  h5 {[%clk 0:00:21]} 40. Kh3 {[%clk 0:00:22]}  Rd8 {[%clk 0:00:19]} 41. Rc3 {[%clk 0:00:20]}  Rdd5 {[%clk 0:00:19]} 42. Rca3 {[%clk 0:00:20]}  Rdc5 {[%clk 0:00:19]} 43. Rd3 {[%clk 0:00:20]}  Rc1 {[%clk 0:00:18]} 44. Kg3 {[%clk 0:00:19]}  Rcc5 {[%clk 0:00:18]} 45. Rda3 {[%clk 0:00:19]}  Rd5 {[%clk 0:00:18]} 46. Rc3 {[%clk 0:00:20]}  Rd1 {[%clk 0:00:18]} 47. Rca3 {[%clk 0:00:20]}  Rdd5 {[%clk 0:00:18]} 48. Rc3 {[%clk 0:00:20]}  Rd1 {[%clk 0:00:18]} 49. Rca3 {[%clk 0:00:21]}  Rd2 {[%clk 0:00:12]} 50. Rxa5 {[%clk 0:00:14]}  Rbb2 {[%clk 0:00:12]} 51. Ra7 {[%clk 0:00:12]}  Rxg2+ {[%clk 0:00:12]} 52. Kf3 {[%clk 0:00:13]}  Rbf2+ {[%clk 0:00:12]} 53. Ke4 {[%clk 0:00:13]}  Rg4 {[%clk 0:00:09]} 54. Rf3 {[%clk 0:00:13]}  Rxf3 {[%clk 0:00:06]} 55. Kxf3 {[%clk 0:00:14]}  Kg8 {[%clk 0:00:07]} 56. Ra8+ {[%clk 0:00:14]}  Kg7 {[%clk 0:00:07]} 57. Ra7 {[%clk 0:00:15]}  Kf8 {[%clk 0:00:07]} 58. Ra8+ {[%clk 0:00:15]}  Kg7 {[%clk 0:00:07]} 59. Ra7 {[%clk 0:00:16]} 1/2-1/2


[Site "https://www.chess.com"]

[Event "Titled Tuesday Blitz June 21 Late 2022"]
[White "Dardha, Daniel"]
[Black "Kamsky, Gata"]
[WhiteFideId "240990"]
[BlackFideId "2000024"]
[WhiteElo "2482"]
[BlackElo "2645"]
[Result "0-1"]
[Round "06"]
[TimeControl "180+1"]
[Date "2022.06.21"]
[WhiteClock "0:00:02"]
[BlackClock "0:00:03"]

1. e4 {[%clk 0:02:59]}  e5 {[%clk 0:02:56]} 2. Nf3 {[%clk 0:02:58]}  Nc6 {[%clk 0:02:55]} 3. Nc3 {[%clk 0:02:58]}  Nf6 {[%clk 0:02:54]} 4. a3 {[%clk 0:02:58]}  g6 {[%clk 0:02:52]} 5. Bc4 {[%clk 0:02:58]}  Bg7 {[%clk 0:02:51]} 6. d3 {[%clk 0:02:58]}  d6 {[%clk 0:02:51]} 7. h3 {[%clk 0:02:57]}  a6 {[%clk 0:02:46]} 8. O-O {[%clk 0:02:57]}  h6 {[%clk 0:02:41]} 9. Be3 {[%clk 0:02:57]}  O-O {[%clk 0:02:41]} 10. Nd5 {[%clk 0:02:38]}  Nxd5 {[%clk 0:02:38]} 11. Bxd5 {[%clk 0:02:39]}  Be6 {[%clk 0:02:27]} 12. Bxe6 {[%clk 0:02:37]}  fxe6 {[%clk 0:02:27]} 13. c3 {[%clk 0:02:38]}  Kh7 {[%clk 0:02:25]} 14. Qe2 {[%clk 0:02:34]}  Qd7 {[%clk 0:02:19]} 15. d4 {[%clk 0:02:24]}  Rf7 {[%clk 0:02:14]} 16. Rad1 {[%clk 0:02:09]}  Raf8 {[%clk 0:02:11]} 17. dxe5 {[%clk 0:01:56]}  Nxe5 {[%clk 0:02:10]} 18. Nxe5 {[%clk 0:01:46]}  Bxe5 {[%clk 0:02:09]} 19. Bd4 {[%clk 0:01:40]}  Bg7 {[%clk 0:01:42]} 20. f3 {[%clk 0:01:32]}  Qb5 {[%clk 0:01:36]} 21. Qd2 {[%clk 0:01:27]}  a5 {[%clk 0:01:29]} 22. Kh1 {[%clk 0:01:19]}  a4 {[%clk 0:01:29]} 23. Rfe1 {[%clk 0:01:15]}  e5 {[%clk 0:01:25]} 24. Bg1 {[%clk 0:01:12]}  Qc4 {[%clk 0:01:26]} 25. Qd5 {[%clk 0:01:10]}  b5 {[%clk 0:01:26]} 26. Qxc4 {[%clk 0:01:08]}  bxc4 {[%clk 0:01:26]} 27. Rd5 {[%clk 0:01:08]}  Rb8 {[%clk 0:01:24]} 28. Re2 {[%clk 0:01:09]}  Bf8 {[%clk 0:01:23]} 29. Ra5 {[%clk 0:01:07]}  c5 {[%clk 0:01:19]} 30. Be3 {[%clk 0:01:03]}  Rfb7 {[%clk 0:01:14]} 31. Bc1 {[%clk 0:01:02]}  h5 {[%clk 0:01:14]} 32. g4 {[%clk 0:01:02]}  Bh6 {[%clk 0:00:46]} 33. g5 {[%clk 0:01:02]}  Bf8 {[%clk 0:00:46]} 34. Rxa4 {[%clk 0:01:01]}  Rb3 {[%clk 0:00:45]} 35. Rxc4 {[%clk 0:00:58]}  Ra8 {[%clk 0:00:46]} 36. Kg2 {[%clk 0:00:57]}  Kg8 {[%clk 0:00:44]} 37. Kf1 {[%clk 0:00:55]}  Kf7 {[%clk 0:00:45]} 38. Ke1 {[%clk 0:00:53]}  Ke6 {[%clk 0:00:45]} 39. Rd2 {[%clk 0:00:48]}  Be7 {[%clk 0:00:43]} 40. h4 {[%clk 0:00:47]}  Rf8 {[%clk 0:00:37]} 41. Rd3 {[%clk 0:00:46]}  Ra8 {[%clk 0:00:38]} 42. Kd1 {[%clk 0:00:44]}  Bd8 {[%clk 0:00:35]} 43. Kc2 {[%clk 0:00:44]}  Rb7 {[%clk 0:00:34]} 44. b4 {[%clk 0:00:41]}  Be7 {[%clk 0:00:26]} 45. Kb3 {[%clk 0:00:41]}  Rba7 {[%clk 0:00:23]} 46. b5 {[%clk 0:00:35]}  Ra5 {[%clk 0:00:23]} 47. a4 {[%clk 0:00:35]}  Bd8 {[%clk 0:00:23]} 48. f4 {[%clk 0:00:33]}  exf4 {[%clk 0:00:23]} 49. Bxf4 {[%clk 0:00:33]}  Be7 {[%clk 0:00:23]} 50. Bd2 {[%clk 0:00:18]}  R5a7 {[%clk 0:00:23]} 51. Rf3 {[%clk 0:00:17]}  Rb7 {[%clk 0:00:22]} 52. Kc2 {[%clk 0:00:15]}  Rba7 {[%clk 0:00:22]} 53. Kb3 {[%clk 0:00:15]}  Rb7 {[%clk 0:00:22]} 54. Be1 {[%clk 0:00:13]}  Rba7 {[%clk 0:00:19]} 55. Bf2 {[%clk 0:00:13]}  Rc7 {[%clk 0:00:18]} 56. Rd3 {[%clk 0:00:10]}  Rf8 {[%clk 0:00:17]} 57. Bg3 {[%clk 0:00:10]}  Ra7 {[%clk 0:00:17]} 58. Be1 {[%clk 0:00:05]}  Rf1 {[%clk 0:00:15]} 59. Bd2 {[%clk 0:00:05]}  Rf8 {[%clk 0:00:14]} 60. Kc2 {[%clk 0:00:05]}  Rfa8 {[%clk 0:00:14]} 61. Kb3 {[%clk 0:00:05]}  Rf8 {[%clk 0:00:14]} 62. Be3 {[%clk 0:00:05]}  Rc8 {[%clk 0:00:12]} 63. Kc2 {[%clk 0:00:04]}  Rca8 {[%clk 0:00:12]} 64. e5 {[%clk 0:00:05]}  d5 {[%clk 0:00:12]} 65. Rxc5 {[%clk 0:00:05]}  Bxc5 {[%clk 0:00:11]} 66. Bxc5 {[%clk 0:00:06]}  Rxa4 {[%clk 0:00:11]} 67. Rf3 {[%clk 0:00:05]}  Kxe5 {[%clk 0:00:08]} 68. b6 {[%clk 0:00:03]}  Ra2+ {[%clk 0:00:07]} 69. Kb3 {[%clk 0:00:03]}  Ra1 {[%clk 0:00:07]} 70. Bd4+ {[%clk 0:00:03]}  Ke4 {[%clk 0:00:07]} 71. Rf6 {[%clk 0:00:03]}  Kd3 {[%clk 0:00:06]} 72. Kb4 {[%clk 0:00:03]}  R8a5 {[%clk 0:00:04]} 73. Kb3 {[%clk 0:00:02]}  Rb1# {[%clk 0:00:03]} 0-1


[Site "https://www.chess.com"]

[Event "Titled Tuesday Blitz June 21 Late 2022"]
[White "De La Colina, Nicolas"]
[Black "Vidonyak, Roman"]
[WhiteFideId "30946921"]
[BlackFideId "14100622"]
[WhiteElo "2046"]
[BlackElo "2356"]
[Result "1-0"]
[Round "06"]
[TimeControl "180+1"]
[Date "2022.06.22"]
[WhiteClock "0:00:13"]
[BlackClock "0:00:07"]

1. e4 {[%clk 0:03:00]}  c5 {[%clk 0:02:59]} 2. Nf3 {[%clk 0:02:57]}  d6 {[%clk 0:03:00]} 3. Bb5+ {[%clk 0:02:55]}  Nd7 {[%clk 0:02:59]} 4. a4 {[%clk 0:02:51]}  Nf6 {[%clk 0:02:59]} 5. Nc3 {[%clk 0:02:51]}  e6 {[%clk 0:02:55]} 6. d3 {[%clk 0:02:43]}  Be7 {[%clk 0:02:53]} 7. O-O {[%clk 0:02:41]}  O-O {[%clk 0:02:52]} 8. Re1 {[%clk 0:02:35]}  a6 {[%clk 0:02:48]} 9. Bc4 {[%clk 0:02:35]}  b6 {[%clk 0:02:47]} 10. h3 {[%clk 0:02:25]}  Bb7 {[%clk 0:02:47]} 11. Bf4 {[%clk 0:02:26]}  Rc8 {[%clk 0:02:38]} 12. Qe2 {[%clk 0:02:19]}  Re8 {[%clk 0:02:32]} 13. Bb3 {[%clk 0:02:11]}  d5 {[%clk 0:02:27]} 14. Rad1 {[%clk 0:01:59]}  d4 {[%clk 0:02:20]} 15. Nb1 {[%clk 0:01:57]}  b5 {[%clk 0:02:06]} 16. axb5 {[%clk 0:01:58]}  axb5 {[%clk 0:02:07]} 17. Nbd2 {[%clk 0:01:57]}  Nb6 {[%clk 0:02:05]} 18. c3 {[%clk 0:01:47]}  c4 {[%clk 0:01:50]} 19. dxc4 {[%clk 0:01:44]}  d3 {[%clk 0:01:50]} 20. Qf1 {[%clk 0:01:24]}  bxc4 {[%clk 0:01:50]} 21. Ba2 {[%clk 0:01:24]}  Ra8 {[%clk 0:01:44]} 22. Bxc4 {[%clk 0:01:15]}  Nxc4 {[%clk 0:01:39]} 23. Nxc4 {[%clk 0:01:16]}  Ba6 {[%clk 0:01:39]} 24. Rxd3 {[%clk 0:01:02]}  Qc8 {[%clk 0:01:28]} 25. b3 {[%clk 0:00:55]}  Qb7 {[%clk 0:01:13]} 26. Nfd2 {[%clk 0:00:47]}  Rec8 {[%clk 0:01:01]} 27. Qe2 {[%clk 0:00:44]}  Bxc4 {[%clk 0:01:00]} 28. bxc4 {[%clk 0:00:32]}  Ra2 {[%clk 0:00:56]} 29. Qf3 {[%clk 0:00:28]}  Qb2 {[%clk 0:00:51]} 30. Bd6 {[%clk 0:00:14]}  Bd8 {[%clk 0:00:37]} 31. Bb4 {[%clk 0:00:14]}  Bc7 {[%clk 0:00:32]} 32. e5 {[%clk 0:00:13]}  Ra1 {[%clk 0:00:21]} 33. Qe2 {[%clk 0:00:07]}  Rxe1+ {[%clk 0:00:16]} 34. Qxe1 {[%clk 0:00:08]}  Ne8 {[%clk 0:00:16]} 35. Nf3 {[%clk 0:00:08]}  h6 {[%clk 0:00:15]} 36. g3 {[%clk 0:00:08]}  Qc2 {[%clk 0:00:14]} 37. Qd2 {[%clk 0:00:07]}  Qb1+ {[%clk 0:00:13]} 38. Qd1 {[%clk 0:00:07]}  Qa2 {[%clk 0:00:13]} 39. Rd4 {[%clk 0:00:05]}  Qa8 {[%clk 0:00:13]} 40. Qe2 {[%clk 0:00:03]}  Bb6 {[%clk 0:00:13]} 41. Re4 {[%clk 0:00:03]}  Qc6 {[%clk 0:00:11]} 42. c5 {[%clk 0:00:03]}  Bxc5 {[%clk 0:00:10]} 43. Bxc5 {[%clk 0:00:04]}  Qxc5 {[%clk 0:00:11]} 44. Re3 {[%clk 0:00:04]}  Nc7 {[%clk 0:00:11]} 45. Rd3 {[%clk 0:00:03]}  Nd5 {[%clk 0:00:11]} 46. Kg2 {[%clk 0:00:03]}  Nxc3 {[%clk 0:00:10]} 47. Qc2 {[%clk 0:00:04]}  Nd5 {[%clk 0:00:10]} 48. Qxc5 {[%clk 0:00:04]}  Rxc5 {[%clk 0:00:10]} 49. Ra3 {[%clk 0:00:05]}  Kh7 {[%clk 0:00:10]} 50. Ra7 {[%clk 0:00:05]}  Kg6 {[%clk 0:00:10]} 51. Nh4+ {[%clk 0:00:06]}  Kh7 {[%clk 0:00:10]} 52. Rxf7 {[%clk 0:00:06]}  Nc3 {[%clk 0:00:08]} 53. Re7 {[%clk 0:00:05]}  Rxe5 {[%clk 0:00:08]} 54. Nf3 {[%clk 0:00:05]}  Re2 {[%clk 0:00:08]} 55. Nd4 {[%clk 0:00:04]}  Re4 {[%clk 0:00:05]} 56. Nxe6 {[%clk 0:00:04]}  Ra4 {[%clk 0:00:03]} 57. Rxg7+ {[%clk 0:00:03]}  Kh8 {[%clk 0:00:04]} 58. Rc7 {[%clk 0:00:04]}  Ra6 {[%clk 0:00:03]} 59. Rxc3 {[%clk 0:00:03]}  Rxe6 {[%clk 0:00:04]} 60. Rc8+ {[%clk 0:00:04]}  Kg7 {[%clk 0:00:04]} 61. Rc4 {[%clk 0:00:05]}  Rf6 {[%clk 0:00:04]} 62. Rh4 {[%clk 0:00:06]}  Re6 {[%clk 0:00:04]} 63. Rf4 {[%clk 0:00:06]}  Rd6 {[%clk 0:00:04]} 64. h4 {[%clk 0:00:06]}  Rc6 {[%clk 0:00:04]} 65. Rf3 {[%clk 0:00:07]}  Rb6 {[%clk 0:00:05]} 66. Re3 {[%clk 0:00:08]}  Rd6 {[%clk 0:00:06]} 67. Re5 {[%clk 0:00:08]}  Rb6 {[%clk 0:00:06]} 68. Rc5 {[%clk 0:00:08]}  Rd6 {[%clk 0:00:07]} 69. g4 {[%clk 0:00:08]}  Rd4 {[%clk 0:00:06]} 70. Kg3 {[%clk 0:00:09]}  Rd3+ {[%clk 0:00:06]} 71. f3 {[%clk 0:00:09]}  Rd4 {[%clk 0:00:07]} 72. h5 {[%clk 0:00:09]}  Rb4 {[%clk 0:00:06]} 73. Rc6 {[%clk 0:00:09]}  Rd4 {[%clk 0:00:06]} 74. Rg6+ {[%clk 0:00:10]}  Kh7 {[%clk 0:00:05]} 75. Ra6 {[%clk 0:00:11]}  Rd1 {[%clk 0:00:06]} 76. Kf4 {[%clk 0:00:11]}  Rd4+ {[%clk 0:00:06]} 77. Kf5 {[%clk 0:00:11]}  Rd3 {[%clk 0:00:07]} 78. f4 {[%clk 0:00:11]}  Rd5+ {[%clk 0:00:07]} 79. Ke4 {[%clk 0:00:11]}  Rd1 {[%clk 0:00:08]} 80. Ra7+ {[%clk 0:00:11]}  Kg8 {[%clk 0:00:07]} 81. g5 {[%clk 0:00:12]}  Re1+ {[%clk 0:00:07]} 82. Kf5 {[%clk 0:00:12]}  hxg5 {[%clk 0:00:06]} 83. fxg5 {[%clk 0:00:13]}  Rf1+ {[%clk 0:00:07]} 84. Kg6 {[%clk 0:00:13]} 1-0


[Site "https://www.chess.com"]